bitfinex-derivatives/quotes_ETHF0:USTF0_20260118
["timestamp","ask_amount","ask_price","bid_price","bid_amount"]
[1768767417594,0.92330307,3346.9,3345.9,0.95353409]
[1768767417797,1.82233727,3347.1,3345.9,0.95353409]
[1768767418104,0.92330298,3347.0,3345.9,0.95353409]
[1768767418290,0.92330298,3346.9,3345.9,0.95353409]
[1768767418490,0.13933727,3347.0,3345.9,0.95353409]
[1768767418696,0.923361,3346.9,3345.9,0.95353409]
[1768767418896,0.13933727,3347.0,3345.9,0.95353409]
[1768767419096,0.923361,3346.9,3345.9,0.95353409]
[1768767419396,0.13933727,3347.0,3345.9,0.95353409]
[1768767419596,0.92343322,3346.9,3345.9,0.95353409]
[1768767419805,0.13933727,3347.0,3345.9,0.95353409]
[1768767420014,0.92343529,3346.9,3345.9,0.95353409]
[1768767420302,0.13933727,3347.0,3345.9,0.95353409]
[1768767420507,0.92349689,3346.9,3345.9,0.95353409]
[1768767420701,0.13933727,3347.0,3345.9,0.95353409]
[1768767420902,0.92349513,3346.9,3345.9,0.95353409]
[1768767421102,0.13933727,3347.0,3345.9,0.95353409]
[1768767421410,0.92356995,3346.9,3345.9,0.95353409]
[1768767421705,0.13933727,3347.0,3345.9,0.95353409]
[1768767421907,0.92358908,3346.9,3345.9,0.95353409]
[1768767422097,0.13933727,3347.0,3345.9,0.95353409]
[1768767422298,0.92368141,3346.9,3345.9,0.95353409]
[1768767422499,0.13933727,3347.0,3345.9,0.95353409]
[1768767422699,0.9236839,3346.9,3345.9,0.95353409]
[1768767423008,0.13933727,3347.0,3345.9,0.95353409]
[1768767423211,0.9236828,3346.9,3345.9,0.95353409]
[1768767423512,0.13933727,3347.0,3345.9,0.95353409]
[1768767423809,0.92381845,3346.9,3345.9,0.95353409]
[1768767424010,1.684,3347.3,3345.9,0.95353409]
[1768767424313,0.92382147,3347.2,3345.9,0.95353409]
[1768767424608,0.92382147,3347.1,3345.9,0.95353409]
[1768767424808,0.92382147,3347.0,3345.9,0.95353409]
[1768767425008,0.92382147,3346.9,3345.9,0.95353409]
[1768767425209,1.684,3347.3,3345.9,0.95353409]
[1768767425413,0.92420385,3347.2,3345.9,0.95353409]
[1768767425612,0.92420385,3347.1,3345.9,0.95353409]
[1768767425801,0.92420385,3347.0,3345.9,0.95353409]
[1768767426002,0.92420385,3346.9,3345.9,0.95353409]
[1768767426198,0.92446886,3346.8,3345.9,0.95353409]
[1768767426401,1.74376662,3347.4,3345.9,0.95353409]
[1768767426609,0.92452579,3347.3,3345.9,0.95353409]
[1768767426805,0.92452579,3347.2,3345.9,0.95353409]
[1768767427005,0.92452579,3347.1,3345.9,0.95353409]
[1768767427198,0.92452579,3347.0,3345.9,0.95353409]
[1768767427404,0.92452579,3346.9,3346.2,0.95353409]
[1768767427606,1.74376662,3347.4,3346.2,0.95353409]
[1768767427904,0.92495428,3347.3,3346.2,0.95353409]
[1768767428106,0.92495428,3347.2,3346.2,0.95353409]
[1768767428397,0.92495428,3347.1,3346.2,0.95353409]
[1768767428598,0.92495428,3347.0,3346.2,0.95353409]
[1768767428814,0.92495428,3346.9,3346.2,0.95353409]
[1768767429009,1.74376662,3347.4,3346.2,0.95353409]
[1768767429307,0.92509988,3347.3,3346.2,0.95353409]
[1768767429509,0.92509988,3347.2,3346.2,0.95353409]
[1768767429811,0.92509988,3347.1,3346.2,0.95353409]
[1768767430012,0.92509988,3347.0,3346.2,0.95353409]
[1768767430203,1.60778907,3347.5,3346.6,0.95353409]
[1768767430204,0.00335972,3347.5,3346.6,0.95353409]
[1768767430404,0.9247782,3347.4,3346.6,0.95353409]
[1768767430607,0.00335972,3347.5,3346.6,0.95353409]
[1768767430608,0.9247782,3347.3,3346.6,0.95353409]
[1768767430810,0.9247782,3347.2,3346.6,0.95353409]
[1768767431107,0.00335972,3347.5,3346.6,0.95353409]
[1768767431304,0.92476126,3347.4,3346.6,0.95353409]
[1768767431505,0.92476126,3347.3,3346.6,0.95353409]
[1768767431708,0.00335972,3347.5,3346.6,0.95353409]
[1768767431912,0.92451792,3347.4,3346.6,0.95353409]
[1768767432105,0.92451792,3347.3,3346.6,0.95353409]
[1768767432306,0.00335972,3347.5,3346.2,0.95353409]
[1768767432504,0.92432306,3347.4,3346.2,0.95353409]
[1768767432706,0.92432306,3347.3,3346.2,0.95353409]
[1768767432906,0.00335972,3347.5,3346.1,0.95283321]
[1768767433114,0.92432295,3347.4,3346.1,0.95283321]
[1768767433308,0.00335972,3347.5,3346.1,0.95283321]
[1768767433614,0.00335972,3347.5,3346.2,0.29859525]
[1768767434010,0.00335972,3347.5,3346.3,0.14912525]
[1768767434211,0.00335972,3347.5,3346.2,0.14947]
[1768767435611,0.14269699,3347.5,3346.2,0.14947]
[1768767442610,0.00335972,3347.5,3346.5,0.95283321]
[1768767442925,0.14628769,3348.2,3346.5,0.95283321]
[1768767443124,0.92321638,3348.1,3346.5,0.95283321]
[1768767443324,0.92321638,3348.0,3346.5,0.95283321]
[1768767443526,0.92321638,3347.9,3346.5,0.95283321]
[1768767443822,0.92321638,3347.8,3346.5,0.95283321]
[1768767444128,0.92321638,3347.7,3346.5,0.95283321]
[1768767444324,0.15005679,3348.2,3346.2,0.28429754]
[1768767444526,0.14628769,3348.0,3346.2,0.14947]
[1768767444719,0.14628769,3347.8,3346.2,0.14947]
[1768767444919,1.06937364,3347.7,3346.2,0.14947]
[1768767445119,0.14628769,3347.7,3346.2,0.14947]
[1768767457234,0.92237246,3347.6,3346.2,0.14947]
[1768767457424,0.14628769,3347.7,3346.2,0.14947]
[1768767457629,0.92237341,3347.6,3346.2,0.14947]
[1768767457827,0.14628769,3347.7,3346.2,0.14947]
[1768767458028,0.92237334,3347.6,3346.2,0.14947]
[1768767458228,0.14628769,3347.7,3346.2,0.14947]
[1768767458428,0.92261147,3347.6,3346.2,0.14947]
[1768767458733,0.14628769,3347.7,3346.2,0.14947]
[1768767458922,0.92261025,3347.6,3346.2,0.14947]
[1768767459119,0.14628769,3347.7,3346.2,0.14947]
[1768767459434,0.92261027,3347.6,3346.2,0.14947]
[1768767459733,0.14685507,3347.6,3346.2,0.14947]
[1768767474443,1.60819845,3348.2,3346.3,0.14463481]
[1768767474647,0.9236616,3348.1,3346.3,0.14463481]
[1768767474948,0.9236616,3348.0,3346.3,0.14463481]
[1768767475146,0.9236616,3347.9,3346.3,0.14463481]
[1768767475346,0.9236616,3347.8,3346.3,0.14463481]
[1768767475548,0.9236616,3347.7,3346.3,0.14463481]
[1768767475747,0.9236616,3347.6,3346.3,0.14463481]
[1768767475947,1.60819845,3348.2,3346.3,0.14463481]
[1768767476147,0.92287835,3348.1,3346.3,0.14463481]
[1768767476359,0.92287835,3348.0,3346.3,0.14463481]
[1768767476647,1.06359806,3347.9,3346.3,0.14463481]
[1768767476849,0.92287835,3347.8,3346.3,0.14463481]
[1768767477047,0.92287835,3347.7,3346.3,0.14463481]
[1768767477344,0.92287835,3347.6,3346.3,0.14463481]
[1768767477541,0.14071971,3347.9,3346.3,0.14463481]
[1768767477742,0.92286841,3347.8,3346.3,0.14463481]
[1768767477942,0.92286841,3347.7,3346.3,0.14463481]
[1768767478135,0.92286841,3347.6,3346.3,0.14463481]
[1768767478342,0.14071971,3347.9,3346.3,0.14463481]
[1768767478542,0.92285911,3347.8,3346.3,0.14463481]
[1768767478848,0.92285911,3347.7,3346.3,0.14463481]
[1768767479042,0.92285911,3347.6,3346.3,0.14463481]
[1768767479342,0.14071971,3347.4,3345.5,0.1495]
[1768767479541,1.06350014,3347.3,3345.6,0.14463481]
[1768767479742,0.92278043,3347.2,3345.6,0.14463481]
[1768767479941,0.92278043,3347.1,3345.6,0.14463481]
[1768767480145,0.14071971,3347.3,3345.6,0.14463481]
[1768767480341,0.92271033,3347.2,3345.6,0.14463481]
[1768767480540,0.92271033,3347.1,3345.6,0.14463481]
[1768767480749,0.14071971,3347.3,3345.6,0.14463481]
[1768767480946,0.92271273,3347.2,3345.6,0.14463481]
[1768767481155,0.92271316,3347.1,3345.6,0.14463481]
[1768767481357,0.14071971,3347.3,3345.6,0.14463481]
[1768767481554,0.92225547,3347.2,3345.6,0.14463481]
[1768767481748,0.14071971,3347.3,3345.9,0.95283321]
[1768767481946,1.60442935,3347.9,3346.7,0.95283321]
[1768767482158,1.60442935,3348.0,3346.7,0.95283321]
[1768767482358,1.74514906,3348.1,3346.7,0.95283321]
[1768767482544,0.14071971,3348.1,3346.7,0.95283321]
[1768767483058,0.14071971,3348.1,3346.3,1.09746802]
[1768767483258,0.14071971,3348.0,3346.3,1.09746802]
[1768767486050,0.14071971,3348.0,3346.3,0.14463481]
[1768767493865,0.91754239,3347.9,3346.3,0.14463481]
[1768767494066,1.0582621,3347.8,3346.3,0.14463481]
[1768767494264,0.91754239,3347.7,3346.3,0.14463481]
[1768767494965,0.91754239,3347.7,3346.4,0.95290871]
[1768767495167,1.0582621,3347.7,3346.4,0.95290871]
[1768767495355,0.91754239,3347.6,3346.4,0.95290871]
[1768767510185,0.91754239,3347.6,3346.6,0.95290871]
[1768767510685,0.91754239,3347.6,3346.8,0.95290871]
[1768767512584,0.91754239,3347.5,3346.8,0.95290871]
[1768767512788,1.10648579,3348.0,3346.8,0.95290871]
[1768767512987,0.91697375,3347.9,3346.8,0.95290871]
[1768767513181,0.91697375,3347.8,3346.8,0.95290871]
[1768767513381,0.91697375,3347.7,3346.8,0.95290871]
[1768767513587,0.91697375,3347.6,3346.8,0.95290871]
[1768767513787,1.10648579,3348.0,3346.8,0.95290871]
[1768767513788,0.91697375,3347.5,3346.8,0.95290871]
[1768767513986,1.10648579,3348.0,3346.8,0.95290871]
[1768767514190,0.91697481,3347.9,3346.8,0.95290871]
[1768767514484,0.91697481,3347.8,3346.8,0.95290871]
[1768767514686,0.91697481,3347.7,3346.8,0.95290871]
[1768767514887,0.91697481,3347.6,3346.8,0.95290871]
[1768767515084,0.81260538,3347.5,3346.8,0.95290871]
[1768767515290,0.0037691,3348.2,3346.6,0.13989482]
[1768767515291,0.0037691,3348.2,3347.4,0.95290871]
[1768767515483,0.0037691,3348.2,3347.2,0.95290871]
[1768767527200,0.91164513,3348.1,3347.2,0.95290871]
[1768767527391,0.0037691,3348.2,3347.2,0.95290871]
[1768767527591,0.9116272,3348.1,3347.2,0.95290871]
[1768767527798,0.0037691,3348.2,3347.6,0.95290871]
[1768767528098,0.0037691,3348.2,3347.6,0.95617241]
[1768767528398,0.0037691,3348.2,3347.6,0.0032637]
[1768767530501,1.10814339,3348.1,3346.8,0.14944]
[1768767530901,1.10814339,3348.1,3346.8,1.10234871]
[1768767531105,0.15523468,3348.1,3346.8,1.10234871]
[1768767531306,0.15523468,3348.1,3347.0,0.95290871]
[1768767531504,0.15523468,3348.1,3347.0,0.95509085]
[1768767531804,0.0037691,3348.2,3347.0,0.95509085]
[1768767531989,0.91152833,3348.1,3347.0,0.95509085]
[1768767532306,0.0037691,3348.2,3347.0,0.95509085]
[1768767532496,0.91154661,3348.1,3347.0,0.95509085]
[1768767532803,0.0037691,3348.2,3347.0,0.95509085]
[1768767533003,0.91154614,3348.1,3347.0,0.95509085]
[1768767533204,0.0037691,3348.2,3347.0,0.95509085]
[1768767533402,0.91157106,3348.1,3347.0,0.95509085]
[1768767533706,0.0037691,3348.2,3347.0,0.95509085]
[1768767534005,0.91157256,3348.1,3347.0,0.95509085]
[1768767534189,0.0037691,3348.2,3347.0,0.95509085]
[1768767534394,0.91160709,3348.1,3347.0,0.95509085]
[1768767534593,0.0037691,3348.2,3347.0,0.95509085]
[1768767534798,0.91160559,3348.1,3347.0,0.95509085]
[1768767535004,0.0037691,3348.2,3347.0,0.95509085]
[1768767535204,0.91165027,3348.1,3347.0,0.95509085]
[1768767535403,0.0037691,3348.2,3347.0,0.95509085]
[1768767535603,0.91165213,3348.1,3347.0,0.95509085]
[1768767535799,0.0037691,3348.2,3347.0,0.95509085]
[1768767536002,0.91062131,3348.1,3347.0,0.95509085]
[1768767536200,0.0037691,3348.2,3347.0,0.95509085]
[1768767536402,0.91067604,3348.1,3347.2,0.95290871]
[1768767536607,0.0037691,3348.2,3347.2,0.95290871]
[1768767536906,0.91067755,3348.1,3347.2,0.95290871]
[1768767537107,0.0037691,3348.2,3347.2,0.95290871]
[1768767537307,0.91074234,3348.1,3347.2,0.95290871]
[1768767537498,0.0037691,3348.2,3347.2,0.95290871]
[1768767537698,0.91074103,3348.1,3347.2,0.95290871]
[1768767537899,0.0037691,3348.2,3347.2,0.95290871]
[1768767538098,0.91074273,3348.1,3347.2,0.95290871]
[1768767538301,0.0037691,3348.2,3347.2,0.95290871]
[1768767538516,0.91082202,3348.1,3347.2,0.95290871]
[1768767538812,0.0037691,3348.2,3347.2,0.95290871]
[1768767538995,0.9108091,3348.1,3347.2,0.95290871]
[1768767539199,0.0037691,3348.2,3347.2,0.95290871]
[1768767539410,0.91089825,3348.1,3347.2,0.95290871]
[1768767539610,0.0037691,3348.2,3347.2,0.95290871]
[1768767539810,0.91090016,3348.1,3347.2,0.95290871]
[1768767540012,0.0037691,3348.2,3347.2,0.95290871]
[1768767540207,0.91098385,3348.1,3347.2,0.95290871]
[1768767540408,0.0037691,3348.2,3347.2,0.95290871]
[1768767540706,0.91098431,3348.1,3347.2,0.95290871]
[1768767540904,0.0037691,3348.2,3347.6,0.95290871]
[1768767541106,1.60442935,3348.8,3348.0,0.95290871]
[1768767541306,0.91118003,3348.7,3348.0,0.95290871]
[1768767541504,0.91118003,3348.6,3347.7,0.95290871]
[1768767541812,0.91118003,3348.5,3347.7,0.95290871]
[1768767542015,0.91118003,3348.4,3347.7,0.95290871]
[1768767542320,2.31243085,3349.0,3347.5,0.14928766]
[1768767542321,0.95290871,3348.9,3347.5,1.10219637]
[1768767542611,0.91123134,3348.8,3347.5,1.10219637]
[1768767542815,0.91123134,3348.7,3347.5,1.10219637]
[1768767543013,0.91123134,3348.6,3347.5,1.10219637]
[1768767543311,0.91123134,3348.5,3347.5,1.10219637]
[1768767543505,0.91123134,3348.4,3347.5,1.10219637]
[1768767543705,0.95290871,3348.9,3347.5,1.10219637]
[1768767544007,0.9113019,3348.8,3347.5,1.10219637]
[1768767544207,0.9113019,3348.7,3347.5,1.10219637]
[1768767544409,0.9113019,3348.6,3347.5,1.10219637]
[1768767544612,0.9113019,3348.5,3347.5,1.10219637]
[1768767544812,0.9113019,3348.4,3347.5,1.10219637]
[1768767545012,1.75958487,3349.0,3347.5,1.10219637]
[1768767545314,0.91164726,3348.9,3347.5,1.10219637]
[1768767545516,0.91164726,3348.8,3347.5,1.10219637]
[1768767545705,0.91164726,3348.7,3347.5,1.10219637]
[1768767545907,0.91164726,3348.6,3347.5,1.10219637]
[1768767546114,0.91164726,3348.5,3347.5,1.10219637]
[1768767546412,0.91164726,3348.4,3347.5,1.10219637]
[1768767546613,2.71249358,3349.0,3347.7,0.95290871]
[1768767546810,0.91148581,3348.9,3348.0,0.14928766]
[1768767547012,0.95290871,3348.7,3347.6,0.14928766]
[1768767547207,0.95290871,3348.7,3347.3,0.95290871]
[1768767547402,0.15515552,3349.0,3347.0,0.00218214]
[1768767547403,0.00327189,3349.0,3347.5,0.29869766]
[1768767547607,0.00327189,3349.0,3348.3,0.95290871]
[1768767548316,0.005971,3349.4,3348.6,0.95290871]
[1768767549308,0.00832742,3349.4,3348.6,0.95290871]
[1768767550218,0.00832742,3349.4,3348.4,1.10219637]
[1768767552505,0.00832742,3349.4,3348.8,0.95290871]
[1768767552709,0.30117363,3350.3,3349.0,0.95290871]
[1768767552910,0.90980612,3350.2,3349.0,0.95290871]
[1768767553105,0.90980612,3350.1,3349.3,0.95290871]
[1768767553415,0.90980612,3350.0,3349.0,0.95290871]
[1768767553613,0.95290871,3349.8,3348.4,0.29865766]
[1768767555003,0.15451229,3350.0,3348.4,0.29865766]
[1768767555906,1.06081008,3349.9,3348.4,0.29865766]
[1768767556108,0.15188363,3349.9,3348.4,0.29865766]
[1768767558118,0.15188363,3349.9,3348.4,0.14928766]
[1768767558319,0.90851559,3349.8,3348.4,0.14928766]
[1768767558521,0.15188363,3349.9,3348.4,0.14928766]
[1768767558825,0.9084669,3349.8,3348.4,0.14928766]
[1768767559020,0.15188363,3349.9,3348.4,0.14928766]
[1768767559217,0.90848635,3349.8,3348.4,0.14928766]
[1768767559416,0.15188363,3349.9,3348.4,0.14928766]
[1768767559619,0.90845654,3349.8,3348.4,0.14928766]
[1768767559813,0.15188363,3349.9,3348.4,0.14928766]
[1768767560010,0.90845647,3349.8,3348.4,0.14928766]
[1768767560213,0.15188363,3349.9,3348.4,0.14928766]
[1768767560413,0.90842127,3349.8,3348.4,0.14928766]
[1768767560608,0.15188363,3349.9,3348.4,0.14928766]
[1768767560814,0.90842223,3349.8,3348.4,0.14928766]
[1768767561021,0.15188363,3349.9,3348.4,0.14928766]
[1768767561215,0.90845333,3349.8,3348.4,0.14928766]
[1768767561423,0.15188363,3349.9,3348.4,0.14928766]
[1768767561624,0.90844884,3349.8,3348.4,0.14928766]
[1768767561825,0.15188363,3349.9,3348.4,0.14928766]
[1768767562015,0.90849373,3349.8,3348.4,0.14928766]
[1768767562216,0.15188363,3349.9,3348.4,0.14928766]
[1768767562416,0.90855426,3349.8,3348.4,0.14928766]
[1768767562624,0.15188363,3349.9,3348.4,0.14928766]
[1768767562827,0.90855185,3349.8,3348.4,0.14928766]
[1768767563017,0.00262866,3350.0,3348.4,0.14928766]
[1768767563217,0.90862343,3349.9,3348.4,0.14928766]
[1768767563417,0.90862343,3349.8,3348.4,0.14928766]
[1768767563628,0.00262866,3350.0,3348.4,0.14928766]
[1768767563921,0.90863675,3349.9,3348.4,0.14928766]
[1768767564129,0.90863675,3349.8,3348.4,0.14928766]
[1768767564328,0.00262866,3350.0,3348.4,0.14928766]
[1768767564629,0.90876792,3349.9,3348.4,0.14928766]
[1768767564926,0.90876792,3349.8,3348.4,0.14928766]
[1768767565124,0.00262866,3350.0,3348.4,0.14928766]
[1768767565330,0.90889398,3349.9,3348.4,0.14928766]
[1768767565520,0.90889398,3349.8,3348.4,0.14928766]
[1768767565720,0.00262866,3350.0,3348.4,0.14928766]
[1768767565923,0.90687883,3349.9,3348.4,0.14928766]
[1768767566225,0.90687883,3349.8,3348.4,0.14928766]
[1768767566425,0.90687883,3349.7,3348.4,0.14928766]
[1768767566625,0.00262866,3350.0,3348.4,0.14928766]
[1768767566827,0.90706817,3349.9,3348.4,0.14928766]
[1768767567026,0.90706817,3349.8,3348.4,0.14928766]
[1768767567215,0.00262866,3350.0,3348.4,0.14928766]
[1768767568218,0.90756719,3349.9,3348.4,0.14928766]
[1768767568415,0.00262866,3350.0,3348.6,0.16415537]
[1768767569321,0.90781687,3349.9,3348.6,0.16415537]
[1768767569525,0.00262866,3350.0,3348.6,0.16415537]
[1768767569726,0.90781982,3349.9,3348.6,0.16415537]
[1768767569924,0.00262866,3350.0,3348.6,0.16415537]
[1768767570226,0.00262866,3350.0,3348.4,0.14937]
[1768767570227,1.05980331,3349.9,3348.4,0.14937]
[1768767570427,1.05974323,3349.8,3348.4,0.14937]
[1768767570625,0.1519838,3349.8,3348.4,0.14937]
[1768767573129,0.1519838,3349.8,3348.4,0.31352537]
[1768767574231,0.90879857,3349.7,3348.4,0.31352537]
[1768767574432,0.1519838,3349.8,3348.4,0.31352537]
[1768767574634,0.90879859,3349.7,3348.4,0.31352537]
[1768767574826,0.00262866,3350.0,3348.5,0.16415537]
[1768767575031,0.90879803,3349.9,3348.5,0.16415537]
[1768767575227,0.90879803,3349.8,3348.5,0.16415537]
[1768767575531,0.90879803,3349.7,3348.5,0.16415537]
[1768767575734,0.00262866,3350.0,3348.5,0.16415537]
[1768767576032,0.9092105,3349.9,3348.5,0.16415537]
[1768767576228,0.9092105,3349.8,3348.5,0.16415537]
[1768767576428,0.9092105,3349.7,3348.5,0.16415537]
[1768767576626,0.9092105,3349.6,3348.5,0.16415537]
[1768767576934,0.00262866,3350.0,3348.7,0.16824203]
[1768767577123,0.90978081,3349.9,3348.7,0.16824203]
[1768767577319,0.90978081,3349.8,3348.7,0.16824203]
[1768767577531,0.90978081,3349.7,3348.7,0.16824203]
[1768767577720,0.00262866,3350.0,3348.7,0.16824203]
[1768767577928,0.91004302,3349.9,3348.7,0.16824203]
[1768767578233,0.00262866,3350.0,3348.7,0.16824203]
[1768767578234,0.91004302,3349.8,3348.7,0.16824203]
[1768767578533,0.00262866,3350.0,3348.7,0.16824203]
[1768767578736,0.91024308,3349.9,3348.7,0.16824203]
[1768767578939,0.91024308,3349.8,3348.7,0.16824203]
[1768767579125,0.00262866,3350.0,3348.7,0.16824203]
[1768767579326,0.9102414,3349.9,3348.7,0.16824203]
[1768767579528,0.9102414,3349.8,3348.7,0.16824203]
[1768767579740,0.00262866,3350.0,3348.7,0.16824203]
[1768767580036,0.9102565,3349.9,3348.7,0.16824203]
[1768767580238,0.9102565,3349.8,3348.7,0.16824203]
[1768767580441,0.00262866,3350.0,3348.7,0.16824203]
[1768767580632,0.91029267,3349.9,3348.7,0.16824203]
[1768767580834,0.91029267,3349.8,3348.7,0.16824203]
[1768767581138,0.00262866,3350.0,3348.7,0.16824203]
[1768767581346,0.91035167,3349.9,3348.7,0.16824203]
[1768767581638,0.91035167,3349.8,3348.7,0.16824203]
[1768767581836,0.00262866,3350.0,3348.7,0.16824203]
[1768767582030,0.9103462,3349.9,3348.7,0.16824203]
[1768767582232,0.9103462,3349.8,3348.7,0.16824203]
[1768767582431,0.00262866,3350.0,3348.7,0.16824203]
[1768767582632,0.91038824,3349.9,3348.7,0.16824203]
[1768767582826,0.91038824,3349.8,3348.7,0.16824203]
[1768767583031,0.00262866,3350.0,3348.7,0.16824203]
[1768767583233,0.91038806,3349.9,3348.7,0.16824203]
[1768767583537,0.91038806,3349.8,3348.7,0.16824203]
[1768767583840,0.00262866,3350.0,3348.7,0.16824203]
[1768767584034,0.91042187,3349.9,3348.7,0.16824203]
[1768767584233,0.00262866,3350.0,3348.7,0.16824203]
[1768767584437,0.91029397,3349.9,3348.7,0.16824203]
[1768767584742,0.00262866,3350.0,3348.7,0.16824203]
[1768767584944,0.91029281,3349.9,3348.7,0.16824203]
[1768767585238,0.00262866,3350.0,3348.7,0.16824203]
[1768767598859,0.00262866,3350.0,3348.6,0.14936]
[1768767599059,0.9097013,3349.9,3348.6,0.14936]
[1768767599249,0.16248209,3350.0,3348.6,0.14936]
[1768767599559,1.06956372,3349.9,3348.6,0.14936]
[1768767599754,0.90971029,3349.8,3348.6,0.14936]
[1768767600054,0.90971029,3349.7,3348.6,0.14936]
[1768767600357,0.15985343,3349.9,3348.6,0.14936]
[1768767600544,0.15985343,3349.7,3348.3,0.16262152]
[1768767600741,1.06947658,3349.6,3347.9,0.31201152]
[1768767600944,0.15985343,3349.6,3347.9,0.31201152]
[1768767601350,0.15985343,3349.6,3348.0,0.16262152]
[1768767602758,0.15985343,3349.4,3347.9,0.14939]
[1768767602953,1.60705801,3350.0,3348.5,0.16262152]
[1768767603147,0.90959123,3349.9,3348.9,0.16262152]
[1768767603453,2.13923913,3350.8,3348.8,0.95187491]
[1768767603454,1.60442935,3350.8,3349.2,1.11449643]
[1768767603659,1.76428278,3350.8,3349.2,1.11449643]
[1768767603861,0.90984436,3350.7,3349.2,1.11449643]
[1768767604155,0.90984436,3350.6,3349.2,1.11449643]
[1768767604350,0.90984436,3350.5,3349.2,0.16262152]
[1768767604550,0.90984436,3350.4,3349.2,0.16262152]
[1768767604752,0.90984436,3350.3,3349.2,0.16262152]
[1768767604957,0.90984436,3350.2,3349.2,0.16262152]
[1768767605261,0.00383149,3350.5,3349.2,0.16262152]
[1768767605558,0.90976963,3350.4,3349.2,0.16262152]
[1768767605757,0.90976963,3350.3,3349.2,0.16262152]
[1768767605956,0.90976963,3350.2,3349.2,0.16262152]
[1768767606161,0.00383149,3350.5,3349.2,0.16262152]
[1768767606462,0.90976142,3350.4,3349.2,0.16262152]
[1768767606760,0.90976142,3350.3,3349.2,0.16262152]
[1768767606962,0.90976142,3350.2,3349.2,0.16262152]
[1768767607264,0.00383149,3350.5,3349.2,0.16262152]
[1768767607462,0.90973281,3350.4,3349.2,0.16262152]
[1768767607664,0.90973281,3350.3,3349.2,0.16262152]
[1768767607864,0.90973281,3350.2,3349.2,0.16262152]
[1768767608065,0.00383149,3350.5,3349.2,0.16262152]
[1768767608363,0.90969625,3350.4,3349.2,0.16262152]
[1768767608562,0.90969625,3350.3,3349.2,0.16262152]
[1768767608764,0.00383149,3350.5,3349.2,0.16262152]
[1768767608958,0.9096928,3350.4,3349.2,0.16262152]
[1768767609160,0.9096928,3350.3,3349.2,0.16262152]
[1768767609364,0.00383149,3350.5,3349.2,1.11449643]
[1768767609561,0.90965977,3350.4,3349.3,0.16262152]
[1768767609761,0.90965977,3350.3,3349.3,0.16262152]
[1768767610067,0.00383149,3350.5,3349.3,0.16262152]
[1768767610254,0.90961791,3350.4,3349.3,0.16262152]
[1768767610455,0.90961791,3350.3,3349.3,0.16262152]
[1768767610651,0.00383149,3350.5,3349.3,0.16262152]
[1768767610960,0.90943875,3350.4,3349.3,0.16262152]
[1768767611159,0.90943875,3350.3,3349.3,0.16262152]
[1768767611367,0.00383149,3350.5,3349.3,0.16262152]
[1768767611562,0.90939023,3350.4,3349.3,0.16262152]
[1768767611856,0.90939023,3350.3,3349.3,0.16262152]
[1768767612058,0.00383149,3350.5,3349.3,0.16262152]
[1768767612257,0.90936264,3350.4,3349.3,0.16262152]
[1768767612470,0.90936264,3350.3,3349.3,0.16262152]
[1768767612674,0.16368492,3350.5,3348.8,0.31197152]
[1768767612967,1.06916758,3350.4,3348.8,0.31197152]
[1768767613168,0.90931415,3350.3,3348.9,0.16262152]
[1768767615471,0.90931415,3350.3,3349.0,0.16262152]
[1768767615763,0.00383149,3350.5,3349.0,0.16262152]
[1768767615968,0.90928818,3350.4,3349.0,0.16262152]
[1768767616171,0.90928818,3350.3,3349.0,0.16262152]
[1768767616371,0.16368492,3350.5,3349.0,0.16262152]
[1768767616669,0.90926809,3350.4,3349.0,0.16262152]
[1768767616871,0.90926809,3350.3,3349.3,0.95128477]
[1768767617067,0.16368492,3350.5,3349.3,0.95128477]
[1768767617371,0.90927654,3350.4,3349.3,0.95128477]
[1768767617563,0.90927654,3350.3,3349.3,0.95128477]
[1768767617864,0.16368492,3350.5,3349.3,0.95128477]
[1768767618062,0.90924706,3350.4,3349.3,0.95128477]
[1768767618262,0.90924706,3350.3,3349.3,0.95128477]
[1768767618566,0.16368492,3350.5,3349.3,0.95128477]
[1768767618762,0.90922938,3350.4,3349.3,0.95128477]
[1768767618962,0.90922938,3350.3,3349.3,0.95128477]
[1768767619165,0.16368492,3350.5,3349.3,0.95128477]
[1768767619362,0.90921055,3350.4,3349.3,0.95128477]
[1768767619562,0.90921055,3350.3,3349.3,0.95128477]
[1768767619762,0.16368492,3350.5,3349.3,0.95128477]
[1768767619958,0.90920806,3350.4,3349.3,0.95128477]
[1768767620163,0.00383149,3350.5,3349.6,0.95128477]
[1768767620164,0.90920806,3350.3,3349.6,0.95128477]
[1768767620367,0.00383149,3350.5,3349.6,0.95411201]
[1768767620562,0.00383149,3350.5,3349.9,0.95128477]
[1768767622578,1.60442935,3351.6,3350.2,0.95128477]
[1768767622772,2.01782455,3351.5,3349.9,0.95128477]
[1768767622972,0.95128477,3351.2,3349.9,0.95128477]
[1768767623460,0.95443486,3351.2,3349.9,0.95128477]
[1768767623772,0.95128477,3350.6,3349.6,0.00282724]
[1768767624365,1.1087772,3350.6,3349.6,0.00282724]
[1768767625664,0.15749243,3350.5,3349.6,0.00282724]
[1768767626974,0.15749243,3350.9,3349.6,0.00282724]
[1768767627271,1.07026289,3350.8,3349.6,0.00282724]
[1768767627475,1.07026289,3350.7,3349.6,0.00282724]
[1768767627676,0.91277046,3350.6,3349.6,0.00282724]
[1768767627976,0.91277046,3350.5,3349.6,0.00282724]
[1768767628179,0.15749243,3350.6,3349.6,0.00282724]
[1768767628375,0.91274547,3350.5,3349.6,0.00282724]
[1768767628676,1.1087772,3350.6,3349.6,0.00282724]
[1768767628876,1.07023627,3350.5,3349.6,0.00282724]
[1768767629174,1.07023627,3350.4,3349.6,0.00282724]
[1768767629367,0.15749243,3350.4,3349.1,0.95128477]
[1768767630368,0.15749243,3350.4,3349.1,0.95385111]
[1768767630569,0.15749243,3350.3,3349.1,0.00256634]
[1768767634179,0.15749243,3350.3,3349.2,0.95128477]
[1768767638584,0.95128477,3350.6,3349.2,0.95128477]
[1768767638782,0.9137445,3350.5,3349.2,0.95128477]
[1768767638979,0.9137445,3350.4,3349.2,0.95128477]
[1768767639187,0.9137445,3350.3,3349.2,0.95128477]
[1768767639382,0.95128477,3350.6,3349.2,0.95128477]
[1768767639678,0.91375558,3350.5,3349.2,0.95128477]
[1768767639879,0.91375558,3350.4,3349.2,0.95128477]
[1768767640086,0.91375558,3350.3,3349.2,0.95128477]
[1768767640287,0.95128477,3350.6,3349.2,0.95128477]
[1768767640486,0.9138613,3350.5,3349.2,0.95128477]
[1768767640688,0.9138613,3350.4,3349.2,0.95128477]
[1768767640881,0.9138613,3350.3,3349.2,0.95128477]
[1768767641084,0.95128477,3350.6,3349.2,0.95128477]
[1768767641281,0.91386629,3350.5,3349.2,0.95128477]
[1768767641481,0.91386629,3350.4,3349.3,0.95128477]
[1768767641682,0.91386629,3350.3,3349.3,0.95128477]
[1768767641990,1.10411654,3350.7,3349.3,0.95128477]
[1768767642185,0.91386794,3350.6,3349.3,0.95128477]
[1768767642386,0.91386794,3350.5,3349.3,0.95128477]
[1768767642683,0.91386794,3350.4,3349.3,0.95128477]
[1768767642985,0.91386794,3350.3,3349.3,0.95128477]
[1768767643187,1.10411654,3350.7,3349.3,0.95128477]